[Event "*** Titled Tuesday Blitz"]
[Site "Chess.com"]
[Date "2020.02.04"]
[Round "1"]
[White "novocane"]
[Black "Mikhail_Golubev"]
[Result "0-1"]
[WhiteElo "2154"]
[BlackElo "2555"]
[TimeControl "180+2"]
[EndTime "13:09:56 PST"]
[Termination "Mikhail_Golubev won by resignation"]

1. d4 {[%clk 0:03:01.8]} 1... Nf6 {[%clk 0:03:00]} 2. c4 {[%clk 0:03:02.8]} 2...
g6 {[%clk 0:03:01]} 3. Nc3 {[%clk 0:03:03.9]} 3... Bg7 {[%clk 0:03:02]} 4. e4
{[%clk 0:03:05.7]} 4... d6 {[%clk 0:03:03.1]} 5. f3 {[%clk 0:03:07.2]} 5... O-O
{[%clk 0:03:03.2]} 6. Bg5 {[%clk 0:03:08.9]} 6... a6 {[%clk 0:03:01.7]} 7. Qd2
{[%clk 0:03:08.1]} 7... Nc6 {[%clk 0:03:01.9]} 8. Rc1 {[%clk 0:03:02.7]} 8...
Re8 {[%clk 0:02:44.3]} 9. Nge2 {[%clk 0:02:38.2]} 9... e5 {[%clk 0:02:44.1]} 10.
d5 {[%clk 0:02:32.6]} 10... Nd4 {[%clk 0:02:44.4]} 11. Nxd4 {[%clk 0:00:58.9]}
11... exd4 {[%clk 0:02:44.3]} 12. Qxd4 {[%clk 0:00:34.9]} 12... Nxe4 {[%clk
0:02:32.8]} 13. Qxg7+ {[%clk 0:00:23.6]} 13... Kxg7 {[%clk 0:02:30.3]} 14. Bxd8
{[%clk 0:00:22.5]} 14... Nxc3+ {[%clk 0:02:25.7]} 15. Kd2 {[%clk 0:00:20]} 15...
Nxa2 {[%clk 0:02:14]} 16. Ra1 {[%clk 0:00:14.8]} 16... Rxd8 {[%clk 0:02:13.3]}
17. Rxa2 {[%clk 0:00:15.1]} 17... Re8 {[%clk 0:02:09.2]} 18. Bd3 {[%clk
0:00:15.6]} 18... Bd7 {[%clk 0:01:56.5]} 19. b4 {[%clk 0:00:16.7]} 19... h5
{[%clk 0:01:54.8]} 20. Rc1 {[%clk 0:00:16.8]} 20... h4 {[%clk 0:01:49.7]} 21. c5
{[%clk 0:00:17.4]} 21... dxc5 {[%clk 0:01:36.8]} 22. bxc5 {[%clk 0:00:13.8]}
22... c6 {[%clk 0:01:33.8]} 23. d6 {[%clk 0:00:11]} 23... Re5 {[%clk 0:01:28.2]}
24. Rb2 {[%clk 0:00:11.3]} 24... Ra7 {[%clk 0:01:20.6]} 25. Bf1 {[%clk
0:00:05.5]} 25... a5 {[%clk 0:01:07.4]} 26. Kd3 {[%clk 0:00:06.5]} 26... a4
{[%clk 0:01:06.9]} 27. Kd4 {[%clk 0:00:07.2]} 27... Rd5+ {[%clk 0:01:08.1]} 28.
Kc4 {[%clk 0:00:08.7]} 28... a3 {[%clk 0:01:09.1]} 29. Rb6 {[%clk 0:00:07.2]}
29... a2 {[%clk 0:01:05.3]} 30. Ra1 {[%clk 0:00:08.2]} 30... Be6 {[%clk
0:01:06.1]} 31. Kb4 {[%clk 0:00:06.4]} 31... Kf8 {[%clk 0:00:55.1]} 32. Be2
{[%clk 0:00:04.4]} 32... Ke8 {[%clk 0:00:53.3]} 33. Bd1 {[%clk 0:00:05]} 33...
Rd4+ {[%clk 0:00:44.2]} 34. Kc3 {[%clk 0:00:05.2]} 34... Rxd1 {[%clk 0:00:42.8]}
35. Rxd1 {[%clk 0:00:05.5]} 35... a1=Q+ {[%clk 0:00:43.4]} 36. Rxa1 {[%clk
0:00:06.6]} 36... Rxa1 {[%clk 0:00:44]} 37. Rxb7 {[%clk 0:00:08.5]} 37... Rc1+
{[%clk 0:00:43.5]} 38. Kd4 {[%clk 0:00:09.6]} 38... Rc4+ {[%clk 0:00:41.3]} 39.
Ke5 {[%clk 0:00:11]} 39... Rxc5+ {[%clk 0:00:42.4]} 40. Kf6 {[%clk 0:00:12.6]}
40... Rf5+ {[%clk 0:00:41.8]} 41. Kg7 {[%clk 0:00:14.3]} 41... Rd5 {[%clk
0:00:42.2]} 42. Re7+ {[%clk 0:00:08.5]} 42... Kd8 {[%clk 0:00:42.6]} 43. Ra7
{[%clk 0:00:04.6]} 43... c5 {[%clk 0:00:40.1]} 44. g4 {[%clk 0:00:06.5]} 44...
hxg3 {[%clk 0:00:39.3]} 45. hxg3 {[%clk 0:00:06.7]} 45... c4 {[%clk 0:00:37.8]}
46. g4 {[%clk 0:00:04.8]} 46... Rxd6 {[%clk 0:00:37.1]} 47. g5 {[%clk
0:00:04.4]} 47... Rc6 {[%clk 0:00:31.4]} 48. Ra2 {[%clk 0:00:04.2]} 48... c3
{[%clk 0:00:32]} 49. Rc2 {[%clk 0:00:05.1]} 49... Bf5 {[%clk 0:00:31]} 50. Rc1
{[%clk 0:00:07]} 50... Rc7 {[%clk 0:00:31]} 51. f4 {[%clk 0:00:08.1]} 51... c2
{[%clk 0:00:31.8]} 52. Kf8 {[%clk 0:00:08.9]} 52... Kc8 {[%clk 0:00:32.2]} 53.
Ke8 {[%clk 0:00:09.9]} 53... Rb7 {[%clk 0:00:30.3]} 54. Kf8 {[%clk 0:00:09.2]}
54... Rb1 {[%clk 0:00:30.3]} 0-1

[Event "*** Titled Tuesday Blitz"]
[Site "Chess.com"]
[Date "2020.02.04"]
[Round "1"]
[White "sergiochess83"]
[Black "enriquetejedor"]
[Result "1-0"]
[WhiteElo "2909"]
[BlackElo "2481"]
[TimeControl "180+2"]
[EndTime "13:10:01 PST"]
[Termination "sergiochess83 won by checkmate"]

1. e4 {[%clk 0:02:56.9]} 1... c5 {[%clk 0:03:00.5]} 2. Nf3 {[%clk 0:02:57.5]}
2... e6 {[%clk 0:02:58.3]} 3. d4 {[%clk 0:02:58.5]} 3... cxd4 {[%clk 0:03:00.2]}
4. Nxd4 {[%clk 0:03:00.2]} 4... Nc6 {[%clk 0:02:59.2]} 5. Nc3 {[%clk 0:03:01.3]}
5... Nf6 {[%clk 0:02:56.2]} 6. Ndb5 {[%clk 0:02:58.6]} 6... Bb4 {[%clk 0:02:49]}
7. a3 {[%clk 0:02:58]} 7... Bxc3+ {[%clk 0:02:49.2]} 8. Nxc3 {[%clk 0:02:59.9]}
8... d5 {[%clk 0:02:51.1]} 9. exd5 {[%clk 0:03:00.8]} 9... exd5 {[%clk
0:02:46.8]} 10. Bd3 {[%clk 0:03:01.7]} 10... O-O {[%clk 0:02:46.8]} 11. O-O
{[%clk 0:03:02.4]} 11... d4 {[%clk 0:02:44.6]} 12. Ne2 {[%clk 0:03:03.5]} 12...
Bg4 {[%clk 0:02:44.7]} 13. Bf4 {[%clk 0:02:56.5]} 13... Re8 {[%clk 0:02:42.1]}
14. Re1 {[%clk 0:02:44.5]} 14... Qd5 {[%clk 0:02:26.7]} 15. Qd2 {[%clk
0:02:30.3]} 15... Rad8 {[%clk 0:02:13.9]} 16. Ng3 {[%clk 0:02:23.1]} 16... a6
{[%clk 0:02:02]} 17. h3 {[%clk 0:02:09.6]} 17... Bc8 {[%clk 0:01:50]} 18. Bg5
{[%clk 0:02:03]} 18... Qd6 {[%clk 0:01:45.8]} 19. Rxe8+ {[%clk 0:01:50.4]} 19...
Rxe8 {[%clk 0:01:46.3]} 20. Re1 {[%clk 0:01:52.3]} 20... Rxe1+ {[%clk
0:01:39.4]} 21. Qxe1 {[%clk 0:01:52.9]} 21... Qe5 {[%clk 0:01:40.9]} 22. Qxe5
{[%clk 0:01:36.9]} 22... Nxe5 {[%clk 0:01:40.3]} 23. Bxf6 {[%clk 0:01:37.9]}
23... gxf6 {[%clk 0:01:41.1]} 24. Nh5 {[%clk 0:01:35.7]} 24... Nxd3 {[%clk
0:01:25.4]} 25. cxd3 {[%clk 0:01:36.8]} 25... f5 {[%clk 0:01:24]} 26. Kf1 {[%clk
0:01:13.4]} 26... b6 {[%clk 0:01:13.9]} 27. Nf6+ {[%clk 0:00:58.2]} 27... Kg7
{[%clk 0:01:13.1]} 28. Nd5 {[%clk 0:01:00.1]} 28... b5 {[%clk 0:01:11.8]} 29.
Nb4 {[%clk 0:00:56]} 29... Bb7 {[%clk 0:01:10.3]} 30. f4 {[%clk 0:00:50.1]}
30... a5 {[%clk 0:00:48]} 31. Nc2 {[%clk 0:00:50.9]} 31... Ba6 {[%clk
0:00:49.1]} 32. Ke2 {[%clk 0:00:41.4]} 32... Bb7 {[%clk 0:00:46.7]} 33. Nxd4
{[%clk 0:00:41.4]} 33... Bxg2 {[%clk 0:00:45.1]} 34. h4 {[%clk 0:00:38.1]} 34...
b4 {[%clk 0:00:42.6]} 35. axb4 {[%clk 0:00:35.1]} 35... axb4 {[%clk 0:00:43.5]}
36. Nc2 {[%clk 0:00:33.2]} 36... b3 {[%clk 0:00:41.8]} 37. Nd4 {[%clk
0:00:32.9]} 37... Kg6 {[%clk 0:00:40.5]} 38. Nxb3 {[%clk 0:00:13.2]} 38... Kh5
{[%clk 0:00:40.8]} 39. Kf2 {[%clk 0:00:14.3]} 39... Bd5 {[%clk 0:00:41.5]} 40.
Na5 {[%clk 0:00:14.4]} 40... Kxh4 {[%clk 0:00:32.8]} 41. Nc4 {[%clk 0:00:15.7]}
41... Bc6 {[%clk 0:00:28.7]} 42. b4 {[%clk 0:00:15.8]} 42... f6 {[%clk
0:00:27.5]} 43. Ne3 {[%clk 0:00:14.9]} 43... h5 {[%clk 0:00:24.4]} 44. d4 {[%clk
0:00:15.3]} 44... Kh3 {[%clk 0:00:23.3]} 45. d5 {[%clk 0:00:16.5]} 45... Bd7
{[%clk 0:00:24]} 46. d6 {[%clk 0:00:16.8]} 46... h4 {[%clk 0:00:17.9]} 47. Nd5
{[%clk 0:00:17.8]} 47... Kh2 {[%clk 0:00:03.4]} 48. Nxf6 {[%clk 0:00:18.2]}
48... Bc6 {[%clk 0:00:02.8]} 49. d7 {[%clk 0:00:17.7]} 49... Bxd7 {[%clk
0:00:03.9]} 50. Nxd7 {[%clk 0:00:19.6]} 50... h3 {[%clk 0:00:05.3]} 51. Nf6
{[%clk 0:00:19.2]} 51... Kh1 {[%clk 0:00:05.8]} 52. Nh5 {[%clk 0:00:20.3]} 52...
Kh2 {[%clk 0:00:06.1]} 53. b5 {[%clk 0:00:21.1]} 53... Kh1 {[%clk 0:00:07.2]}
54. b6 {[%clk 0:00:22.3]} 54... h2 {[%clk 0:00:09.1]} 55. Ng3# {[%clk
0:00:22.8]} 1-0

[Event "*** Titled Tuesday Blitz"]
[Site "Chess.com"]
[Date "2020.02.04"]
[Round "1"]
[White "Abund"]
[Black "Terao90"]
[Result "0-1"]
[WhiteElo "2720"]
[BlackElo "2416"]
[TimeControl "180+2"]
[EndTime "13:10:10 PST"]
[Termination "Terao90 won by checkmate"]

1. e4 {[%clk 0:03:00.1]} 1... c5 {[%clk 0:02:42.7]} 2. Nf3 {[%clk 0:02:59.6]}
2... Nc6 {[%clk 0:02:43.1]} 3. Bb5 {[%clk 0:03:00.2]} 3... e6 {[%clk 0:02:42]}
4. O-O {[%clk 0:02:54.1]} 4... Nge7 {[%clk 0:02:41.9]} 5. Re1 {[%clk 0:02:55.1]}
5... a6 {[%clk 0:02:42.3]} 6. Bf1 {[%clk 0:02:55.8]} 6... d5 {[%clk 0:02:43.2]}
7. Nc3 {[%clk 0:02:45.1]} 7... dxe4 {[%clk 0:02:36.4]} 8. Nxe4 {[%clk
0:02:45.8]} 8... Nf5 {[%clk 0:02:38.1]} 9. Ng3 {[%clk 0:02:28]} 9... Nfd4 {[%clk
0:02:30.6]} 10. c3 {[%clk 0:02:21.9]} 10... Nxf3+ {[%clk 0:02:31.2]} 11. Qxf3
{[%clk 0:02:22.5]} 11... Be7 {[%clk 0:02:32.8]} 12. Nh5 {[%clk 0:02:17.1]} 12...
O-O {[%clk 0:02:14.9]} 13. d3 {[%clk 0:02:12.2]} 13... g6 {[%clk 0:02:10.8]} 14.
Bh6 {[%clk 0:02:09]} 14... Re8 {[%clk 0:02:10.4]} 15. Qg3 {[%clk 0:01:51]} 15...
Bf8 {[%clk 0:02:03.8]} 16. Bg5 {[%clk 0:01:42.3]} 16... Be7 {[%clk 0:02:03.7]}
17. Bh6 {[%clk 0:01:41.7]} 17... Bh4 {[%clk 0:01:58]} 18. Qf3 {[%clk 0:01:35.1]}
18... f5 {[%clk 0:01:44.6]} 19. Ng3 {[%clk 0:01:22.6]} 19... Bg5 {[%clk
0:01:40]} 20. Bxg5 {[%clk 0:01:20.2]} 20... Qxg5 {[%clk 0:01:41.9]} 21. d4
{[%clk 0:01:09]} 21... cxd4 {[%clk 0:01:42.2]} 22. cxd4 {[%clk 0:01:09.9]} 22...
Nxd4 {[%clk 0:01:39.5]} 23. Qc3 {[%clk 0:01:10.9]} 23... Qf6 {[%clk 0:01:31]}
24. Rad1 {[%clk 0:01:03.6]} 24... Rd8 {[%clk 0:01:31.6]} 25. f4 {[%clk
0:00:36.4]} 25... Kf7 {[%clk 0:01:24.7]} 26. Qc7+ {[%clk 0:00:31.1]} 26... Rd7
{[%clk 0:01:24.1]} 27. Qb6 {[%clk 0:00:30.8]} 27... Qd8 {[%clk 0:01:20.7]} 28.
Qc5 {[%clk 0:00:21.5]} 28... Nc6 {[%clk 0:01:12.7]} 29. Be2 {[%clk 0:00:18.9]}
29... Qe7 {[%clk 0:01:08.3]} 30. Qc3 {[%clk 0:00:17.9]} 30... Qf6 {[%clk
0:01:05.6]} 31. Qb3 {[%clk 0:00:16.3]} 31... Nd4 {[%clk 0:01:04.7]} 32. Qe3
{[%clk 0:00:15.3]} 32... b5 {[%clk 0:00:47]} 33. Bf3 {[%clk 0:00:16.3]} 33...
Rb8 {[%clk 0:00:43.4]} 34. h3 {[%clk 0:00:12.5]} 34... Bb7 {[%clk 0:00:43]} 35.
Bxb7 {[%clk 0:00:11.5]} 35... Rbxb7 {[%clk 0:00:44.9]} 36. Rd2 {[%clk
0:00:11.5]} 36... Rd6 {[%clk 0:00:43.9]} 37. Red1 {[%clk 0:00:12.4]} 37... Rbd7
{[%clk 0:00:45.4]} 38. Kh1 {[%clk 0:00:13]} 38... Rd5 {[%clk 0:00:43.3]} 39. Qf2
{[%clk 0:00:08.5]} 39... e5 {[%clk 0:00:43.1]} 40. fxe5 {[%clk 0:00:08.4]} 40...
Qxe5 {[%clk 0:00:45]} 41. Nf1 {[%clk 0:00:09.6]} 41... Ne6 {[%clk 0:00:44.5]}
42. Ne3 {[%clk 0:00:10.4]} 42... Rxd2 {[%clk 0:00:44.2]} 43. Rxd2 {[%clk
0:00:11.8]} 43... Rxd2 {[%clk 0:00:46.1]} 44. Qxd2 {[%clk 0:00:13.5]} 44... Qd4
{[%clk 0:00:47.7]} 45. Qe2 {[%clk 0:00:11]} 45... Nc5 {[%clk 0:00:47]} 46. Qf3
{[%clk 0:00:07]} 46... Ne4 {[%clk 0:00:47.7]} 47. b3 {[%clk 0:00:05.6]} 47...
Ke6 {[%clk 0:00:47.4]} 48. h4 {[%clk 0:00:05]} 48... Ke5 {[%clk 0:00:44.3]} 49.
Kh2 {[%clk 0:00:05.4]} 49... h5 {[%clk 0:00:41]} 50. g3 {[%clk 0:00:04.6]} 50...
Qd2+ {[%clk 0:00:40.4]} 51. Ng2 {[%clk 0:00:05.8]} 51... Qf2 {[%clk 0:00:40.4]}
52. Qd3 {[%clk 0:00:05.6]} 52... Qd4 {[%clk 0:00:38.7]} 53. Qf3 {[%clk
0:00:06.6]} 53... Nf2 {[%clk 0:00:38.1]} 54. Nf4 {[%clk 0:00:06.4]} 54... Ng4+
{[%clk 0:00:38.5]} 55. Kh3 {[%clk 0:00:07.4]} 55... Qd2 {[%clk 0:00:27.5]} 56.
Nxg6+ {[%clk 0:00:05.2]} 56... Kf6 {[%clk 0:00:28.8]} 57. Qc6+ {[%clk
0:00:06.1]} 57... Kg7 {[%clk 0:00:29.9]} 58. Qc7+ {[%clk 0:00:06.2]} 58... Kxg6
{[%clk 0:00:30.2]} 59. Qc6+ {[%clk 0:00:07.4]} 59... Nf6 {[%clk 0:00:30.8]} 60.
Qe6 {[%clk 0:00:07.6]} 60... Qd5 {[%clk 0:00:27.6]} 61. Qe3 {[%clk 0:00:08.5]}
61... Qh1# {[%clk 0:00:28.3]} 0-1

[Event "*** Titled Tuesday Blitz"]
[Site "Chess.com"]
[Date "2020.02.04"]
[Round "1"]
[White "isla88"]
[Black "Misi_95"]
[Result "0-1"]
[WhiteElo "2332"]
[BlackElo "2660"]
[TimeControl "180+2"]
[EndTime "13:10:10 PST"]
[Termination "Misi_95 won by resignation"]

1. c4 {[%clk 0:02:59.3]} 1... e5 {[%clk 0:02:45.6]} 2. Nc3 {[%clk 0:02:59.3]}
2... Nf6 {[%clk 0:02:42.9]} 3. Nf3 {[%clk 0:03:00.1]} 3... Nc6 {[%clk
0:02:39.7]} 4. e3 {[%clk 0:02:59.6]} 4... Bb4 {[%clk 0:02:39.8]} 5. Qc2 {[%clk
0:02:55.8]} 5... O-O {[%clk 0:02:36.6]} 6. Nd5 {[%clk 0:02:55.3]} 6... Bc5
{[%clk 0:02:32.8]} 7. Ng5 {[%clk 0:02:53.8]} 7... g6 {[%clk 0:02:28.1]} 8. Nxf6+
{[%clk 0:02:54.6]} 8... Qxf6 {[%clk 0:02:27.9]} 9. Ne4 {[%clk 0:02:55.6]} 9...
Qe7 {[%clk 0:02:28.2]} 10. a3 {[%clk 0:02:56.1]} 10... a5 {[%clk 0:02:27]} 11.
Nxc5 {[%clk 0:02:52.1]} 11... Qxc5 {[%clk 0:02:27]} 12. Qc3 {[%clk 0:02:49.3]}
12... a4 {[%clk 0:02:11.9]} 13. Be2 {[%clk 0:02:47.6]} 13... d6 {[%clk
0:02:09.4]} 14. O-O {[%clk 0:02:43.6]} 14... f5 {[%clk 0:02:02.3]} 15. b4 {[%clk
0:02:39]} 15... axb3 {[%clk 0:02:02.5]} 16. Qxb3 {[%clk 0:02:40.1]} 16... Be6
{[%clk 0:02:01.5]} 17. d3 {[%clk 0:02:02.8]} 17... b6 {[%clk 0:01:56.2]} 18. Bb2
{[%clk 0:02:01.6]} 18... f4 {[%clk 0:01:57]} 19. exf4 {[%clk 0:01:44.9]} 19...
Rxf4 {[%clk 0:01:55.4]} 20. Bf3 {[%clk 0:01:43.7]} 20... Rxf3 {[%clk 0:01:43.6]}
21. gxf3 {[%clk 0:01:43.8]} 21... Nd4 {[%clk 0:01:45.5]} 22. Bxd4 {[%clk
0:01:44.1]} 22... Qxd4 {[%clk 0:01:46.4]} 23. Rfe1 {[%clk 0:01:30.5]} 23... Rf8
{[%clk 0:01:46.2]} 24. Qd1 {[%clk 0:01:25.7]} 24... Qh4 {[%clk 0:01:33.4]} 25.
Re4 {[%clk 0:01:14.7]} 25... Qh5 {[%clk 0:01:26.4]} 26. f4 {[%clk 0:01:09]}
26... Bg4 {[%clk 0:01:26.7]} 27. Qd2 {[%clk 0:01:01.3]} 27... Bf3 {[%clk
0:01:26.8]} 28. fxe5 {[%clk 0:00:35.3]} 28... Qh3 {[%clk 0:01:18.5]} 29. Qg5
{[%clk 0:00:29.5]} 29... Bxe4 {[%clk 0:01:13.5]} 30. dxe4 {[%clk 0:00:30.6]}
30... dxe5 {[%clk 0:01:11.8]} 31. Qxe5 {[%clk 0:00:26.6]} 31... Qg4+ {[%clk
0:01:11.5]} 32. Kf1 {[%clk 0:00:27.4]} 32... Qf3 {[%clk 0:01:05.2]} 33. Qd5+
{[%clk 0:00:26.8]} 33... Kg7 {[%clk 0:01:05.7]} 34. Qe5+ {[%clk 0:00:25.9]}
34... Kh6 {[%clk 0:01:06.4]} 35. Ra2 {[%clk 0:00:17.2]} 35... Rd8 {[%clk
0:00:30.7]} 36. Ra1 {[%clk 0:00:07.8]} 36... Rd2 {[%clk 0:00:30.7]} 37. Qg3
{[%clk 0:00:08.6]} 37... Qh1+ {[%clk 0:00:25.9]} 38. Qg1 {[%clk 0:00:09]} 38...
Qxe4 {[%clk 0:00:26.5]} 39. Re1 {[%clk 0:00:09.2]} 39... Qxc4+ {[%clk
0:00:23.9]} 40. Kg2 {[%clk 0:00:10.5]} 40... Qg4+ {[%clk 0:00:22.2]} 41. Kf1
{[%clk 0:00:07.1]} 41... Qc4+ {[%clk 0:00:14.9]} 42. Kg2 {[%clk 0:00:08.3]}
42... Qd5+ {[%clk 0:00:15.9]} 43. Kf1 {[%clk 0:00:08.8]} 43... Qd3+ {[%clk
0:00:16.9]} 44. Kg2 {[%clk 0:00:09.5]} 44... Qxa3 {[%clk 0:00:17.2]} 45. Re3
{[%clk 0:00:10.2]} 45... Qa8+ {[%clk 0:00:17.7]} 46. Kh3 {[%clk 0:00:07.2]}
46... Rd5 {[%clk 0:00:16.3]} 47. f3 {[%clk 0:00:06.6]} 47... Rg5 {[%clk
0:00:16]} 48. Qc1 {[%clk 0:00:06.8]} 48... Qc8+ {[%clk 0:00:16.7]} 49. Kh4
{[%clk 0:00:06.7]} 49... Rh5+ {[%clk 0:00:17.2]} 50. Kg3 {[%clk 0:00:08]} 50...
Qh3+ {[%clk 0:00:16.1]} 51. Kf2 {[%clk 0:00:09.1]} 51... Qxh2+ {[%clk
0:00:17.6]} 52. Ke1 {[%clk 0:00:10.5]} 52... Qg1+ {[%clk 0:00:18.9]} 53. Kd2
{[%clk 0:00:11.8]} 53... Rd5+ {[%clk 0:00:19.8]} 54. Rd3 {[%clk 0:00:12.3]}
54... Qxc1+ {[%clk 0:00:19]} 0-1

[Event "*** Titled Tuesday Blitz"]
[Site "Chess.com"]
[Date "2020.02.04"]
[Round "1"]
[White "Ceejay271"]
[Black "Grandelicious"]
[Result "0-1"]
[WhiteElo "2276"]
[BlackElo "2626"]
[TimeControl "180+2"]
[EndTime "13:10:12 PST"]
[Termination "Grandelicious won by resignation"]

1. Nf3 {[%clk 0:03:01.7]} 1... c5 {[%clk 0:02:58.7]} 2. g3 {[%clk 0:03:01.6]}
2... Nc6 {[%clk 0:02:59.8]} 3. Bg2 {[%clk 0:03:02.8]} 3... g6 {[%clk 0:03:01.4]}
4. O-O {[%clk 0:03:03.3]} 4... Bg7 {[%clk 0:03:02.8]} 5. c3 {[%clk 0:03:03.5]}
5... e5 {[%clk 0:03:03.4]} 6. d3 {[%clk 0:03:03.3]} 6... Nge7 {[%clk 0:03:03]}
7. e4 {[%clk 0:03:03.6]} 7... O-O {[%clk 0:03:03.8]} 8. Nbd2 {[%clk 0:03:01.9]}
8... d6 {[%clk 0:03:02.2]} 9. a4 {[%clk 0:02:58.5]} 9... h6 {[%clk 0:03:03]} 10.
Nc4 {[%clk 0:02:59]} 10... Be6 {[%clk 0:03:03.3]} 11. Nfd2 {[%clk 0:02:45.4]}
11... Qd7 {[%clk 0:02:53.7]} 12. f4 {[%clk 0:02:44.6]} 12... exf4 {[%clk
0:02:52.9]} 13. gxf4 {[%clk 0:02:42.5]} 13... d5 {[%clk 0:02:45.2]} 14. exd5
{[%clk 0:02:29.7]} 14... Nxd5 {[%clk 0:02:47.1]} 15. Ne4 {[%clk 0:02:28.4]}
15... b6 {[%clk 0:02:42.1]} 16. Ng3 {[%clk 0:02:21.1]} 16... Bg4 {[%clk
0:02:29.5]} 17. Bf3 {[%clk 0:02:11.8]} 17... Bh3 {[%clk 0:02:22.6]} 18. Re1
{[%clk 0:02:11]} 18... Rae8 {[%clk 0:02:15.8]} 19. Bd2 {[%clk 0:02:11.4]} 19...
h5 {[%clk 0:01:51.7]} 20. Qc2 {[%clk 0:02:03.7]} 20... Bg4 {[%clk 0:01:24.7]}
21. Bh1 {[%clk 0:01:50.4]} 21... Bh6 {[%clk 0:01:08.5]} 22. Ne5 {[%clk
0:01:45.3]} 22... Nxe5 {[%clk 0:00:59.5]} 23. fxe5 {[%clk 0:01:47.2]} 23... Nf4
{[%clk 0:00:52.8]} 24. Ne4 {[%clk 0:01:26.6]} 24... Nh3+ {[%clk 0:00:49.6]} 25.
Kg2 {[%clk 0:01:25.3]} 25... Bf3+ {[%clk 0:00:44.7]} 26. Kf1 {[%clk 0:01:06.2]}
26... Bxe4 {[%clk 0:00:17.6]} 27. Rxe4 {[%clk 0:00:59.9]} 27... Qf5+ {[%clk
0:00:17.9]} 28. Kg2 {[%clk 0:00:55.3]} 28... Bxd2 {[%clk 0:00:13.9]} 29. Qxd2
{[%clk 0:00:55.6]} 29... Ng5 {[%clk 0:00:15.1]} 30. Rf4 {[%clk 0:00:44.6]} 30...
Qh3+ {[%clk 0:00:14.8]} 31. Kg1 {[%clk 0:00:45.6]} 31... Rxe5 {[%clk 0:00:16.7]}
32. Bg2 {[%clk 0:00:46.2]} 32... Qe6 {[%clk 0:00:17.4]} 33. Raf1 {[%clk
0:00:45.5]} 33... Re2 {[%clk 0:00:17.8]} 34. Qc1 {[%clk 0:00:46.3]} 34... Nh3+
{[%clk 0:00:18.9]} 35. Bxh3 {[%clk 0:00:46.1]} 35... Qxh3 {[%clk 0:00:20.8]} 36.
R4f2 {[%clk 0:00:47.3]} 36... Rfe8 {[%clk 0:00:21.7]} 37. Qf4 {[%clk 0:00:47.4]}
37... Rxf2 {[%clk 0:00:22]} 38. Qxf2 {[%clk 0:00:45.6]} 38... Qg4+ {[%clk
0:00:23.1]} 39. Kh1 {[%clk 0:00:45.8]} 39... Re7 {[%clk 0:00:24.1]} 40. a5
{[%clk 0:00:39.1]} 40... h4 {[%clk 0:00:22.8]} 41. axb6 {[%clk 0:00:37.9]} 41...
axb6 {[%clk 0:00:24.7]} 42. Qf4 {[%clk 0:00:30.9]} 42... Qe2 {[%clk 0:00:18.2]}
43. Qf3 {[%clk 0:00:19.1]} 43... Qxb2 {[%clk 0:00:16.7]} 44. c4 {[%clk 0:00:20]}
44... Qe2 {[%clk 0:00:14.4]} 45. Qxe2 {[%clk 0:00:15.2]} 45... Rxe2 {[%clk
0:00:16.3]} 46. Rf6 {[%clk 0:00:14.6]} 46... h3 {[%clk 0:00:16.9]} 47. Kg1
{[%clk 0:00:14.7]} 47... Rg2+ {[%clk 0:00:18.1]} 48. Kh1 {[%clk 0:00:15.2]}
48... Rd2 {[%clk 0:00:19]} 49. Kg1 {[%clk 0:00:16.6]} 49... Rxd3 {[%clk
0:00:20.5]} 50. Rxb6 {[%clk 0:00:17.3]} 50... Rd4 {[%clk 0:00:21.2]} 51. Rb3
{[%clk 0:00:18]} 51... Rg4+ {[%clk 0:00:22.2]} 52. Kf1 {[%clk 0:00:17.6]} 52...
Rxc4 {[%clk 0:00:22.3]} 53. Rxh3 {[%clk 0:00:17.5]} 53... Rc2 {[%clk 0:00:23.7]}
54. Kg1 {[%clk 0:00:17]} 54... c4 {[%clk 0:00:24.9]} 55. Ra3 {[%clk 0:00:17.2]}
55... c3 {[%clk 0:00:26.2]} 56. Ra8+ {[%clk 0:00:16.9]} 56... Kg7 {[%clk
0:00:27.5]} 57. Rc8 {[%clk 0:00:18.8]} 57... Kh6 {[%clk 0:00:27.5]} 58. Rc5
{[%clk 0:00:20]} 58... f5 {[%clk 0:00:28.7]} 59. Kh1 {[%clk 0:00:20.5]} 59...
Kg5 {[%clk 0:00:29.7]} 60. Kg1 {[%clk 0:00:22.1]} 60... Kg4 {[%clk 0:00:30.2]}
61. Rc6 {[%clk 0:00:22.2]} 61... g5 {[%clk 0:00:31.5]} 62. Rc4+ {[%clk
0:00:22.6]} 62... f4 {[%clk 0:00:32.8]} 63. Rc5 {[%clk 0:00:22.4]} 63... Kf3
{[%clk 0:00:33.4]} 64. h3 {[%clk 0:00:23.6]} 64... Rc1+ {[%clk 0:00:31.3]} 65.
Kh2 {[%clk 0:00:24.6]} 65... c2 {[%clk 0:00:33.2]} 66. Rc3+ {[%clk 0:00:23.2]}
66... Ke4 {[%clk 0:00:33.6]} 67. Rc8 {[%clk 0:00:23.9]} 67... f3 {[%clk
0:00:34.3]} 68. Re8+ {[%clk 0:00:23.6]} 68... Kd4 {[%clk 0:00:34.8]} 69. Rd8+
{[%clk 0:00:24.8]} 69... Ke5 {[%clk 0:00:35.2]} 70. Re8+ {[%clk 0:00:25.8]}
70... Kd6 {[%clk 0:00:36.3]} 71. Rc8 {[%clk 0:00:25.7]} 71... f2 {[%clk
0:00:36.9]} 0-1